Cogmind - Beta 16 @@@ ROGUE MODE // 2025.11.04 @ 01:24:32 Player: ktur Result: Destroyed by Enhanced Grunt with Neutron Cannon Performance ------------- Evolutions (4) 2000 Regions Visited (7) 1400 Robots Destroyed (66) 330 Value Destroyed (2205) 2205 Prototype IDs (239) 4780 Alien Tech Used (0) 0 Bonus (4271) 4271 TOTAL SCORE: 14986 Bonus ------- High Alert Combat Kills 171 Registered with UFD 300 Met Optimus in HQ 500 Met Data Miner 300 Used Data Conduit 3000 Cogmind --------- Core Integrity 0/850 Matter 300/300 Energy 79/100 System Corruption 23% Temperature Cool (0) Movement Core (50) Location -6/Data Miner Parts ------- > --- POWER (2) -------- (None) > --- PROPULSION (4) --- (None) > --- UTILITY (7) ------ Enhanced Optical Array Makeshift Terrain Scan Processor Core Analyzer A0-MCA's Component Scanner > --- WEAPON (2) ------- (None) > --- INVENTORY (5) ---- Enhanced Scrap Shield Deep Network Scanner Quantum Router CPS Tube (2) Peak State ------------ > --- POWER ------------ Light Fission Core Light Fission Core > --- PROPULSION ------- Flexi-carbon Leg Improved VSS Leg Cargo Legs > --- UTILITY ---------- Large Storage Unit Energy Well Deep Structural Scanner Enhanced Optical Array Improved Heavy Armor Plating Shield Generator A0-MCA's Component Scanner > --- WEAPON ----------- Cooled Plasma Cannon Power Sword > --- INVENTORY -------- Flexi-carbon Leg Improved Cooling System Advanced ECM Suite Improved Utility Shielding EM Shield Improved Lightning Gun Improved Heavy Machine Gun Improved Heavy Machine Gun Subdweller Shrapnel Launcher CPS Tube CPS Tube CPS Tube CPS Tube Vortex Trap Vortex Trap [Rating: 88] Favorites ----------- Power Ion Engine Engine Ion Engine Power Core Light Fission Core Propulsion Light Treads Treads Light Treads Leg Cargo Legs Hover Unit Gravmag Array Flight Unit Cesium-ion Thruster Utility Scrap Shield Device Deep Structural Scanner Storage Large Storage Unit Processor A0-MCA's Component Scanner Protection Scrap Shield Weapon Makeshift Hammer Energy Gun Subdweller Laser Energy Cannon Subdweller Beam Cannon Ballistic Gun Assault Rifle Ballistic Cannon Advanced Assault Cannon Launcher Subdweller Shrapnel Launcher Impact Weapon Makeshift Hammer Slashing Weapon Power Sword Build | -11 -10 -10 -9 -6 -6 -6 -6 ------- Run | Yrd Mat Sub Scr Fac Low Low Dat Slots Evolved 8 | . . . . 8 . . . Power 1 | . . . . 1 . . . Propulsion 2 | . . . . 2 . . . Utility 5 | . . . . 5 . . . Weapon . | . . . . . . . . Parts Attached 82 | 8 . 9 10 45 8 1 1 Power 14 | 1 . . 2 10 1 . . Engine 10 | 1 . . 2 6 1 . . Core 4 | . . . . 4 . . . Reactor . | . . . . . . . . Propulsion 17 | 2 . . 3 9 2 . 1 Treads 2 | 2 . . . . . . . Leg 10 | . . . 1 9 . . . Wheel . | . . . . . . . . Hover 1 | . . . . . . . 1 Flight 4 | . . . 2 . 2 . . Utility 31 | 2 . 1 3 19 5 1 . Device 11 | 1 . . 2 8 . . . Storage 4 | 1 . . 1 1 . 1 . Processor 7 | . . . . 4 3 . . Hackware . | . . . . . . . . Protection 9 | . . 1 . 6 2 . . Artifact . | . . . . . . . . Weapon 20 | 3 . 8 2 7 . . . Energy Gun 3 | 1 . 1 . 1 . . . Energy Cannon 6 | . . 4 1 1 . . . Ballistic Gun 6 | 2 . 2 . 2 . . . Ballistic Cannon 1 | . . . 1 . . . . Launcher 2 | . . . . 2 . . . Special Weapon . | . . . . . . . . Impact Weapon 1 | . . 1 . . . . . Slashing Weapon 1 | . . . . 1 . . . Piercing Weapon . | . . . . . . . . Special Melee Weapon . | . . . . . . . . Unidentified Prototypes . | . . . . . . . . Corrupted Parts 2 | . . . . 2 . . . System Corruption 20 | . . . . 20 . . . Parts Lost 22 | . . . . 15 . . 7 Power 3 | . . . . 3 . . . Propulsion 7 | . . . . 4 . . 3 Utility 9 | . . . . 6 . . 3 Weapon 3 | . . . . 2 . . 1 Highest Loss Streak 8 | . . . . 8 . . 7 To Critical Strikes . | . . . . . . . . Average Backups 7 | 3 5 4 7 12 4 5 6 Power . | . 1 . . . . . . Propulsion 1 | 1 2 1 1 . . . . Utility 1 | . . . 1 3 . 2 3 Weapon 2 | . 1 2 2 3 . . . Tool/Special . | . . . . . . . . Unused Backups 27 | . . 6 3 7 1 1 9 Power 2 | . . 1 . 1 . . . Propulsion 4 | . . 3 . 1 . . . Utility 13 | . . 1 2 3 . 1 6 Weapon 3 | . . 1 1 1 . . . Tool/Special 5 | . . . . 1 1 . 3 Average Slot Usage (%) 80 | . 100 85 77 81 47 66 61 Engine 11 | . 14 14 13 4 4 2 . Core 1 | . . . . 4 . . . Treads 18 | . 28 28 25 . . . . Leg 4 | . . . . 15 . . . Device 5 | . 14 . 3 13 . . . Storage 5 | . 14 . 6 11 . 4 5 Processor 4 | . . . . 12 21 33 33 Protection 8 | . . 13 7 4 3 6 5 Energy Gun 2 | . . 7 . . . . . Energy Cannon 7 | . . 14 3 3 . . . Ballistic Gun 2 | . 28 4 . 1 . . . Impact Weapon 5 | . . 2 13 . . . . Slashing Weapon 1 | . . . . 4 6 6 6 Peak Build Rating 88 | 7 7 15 34 88 47 43 48 Average Rating 30 | 5 7 11 15 77 35 42 43 On Entrance 21 | . 7 7 15 34 20 43 42 Avg Prop Armor Cover (%) 8 | . . . . 8 . . . Naked Turns 1 | . . . 1 . . . . Heaviest Build 68 | 15 15 39 40 68 9 9 9 Greatest Support 95 | 40 40 40 55 95 10 10 20 Greatest Overweight (x) 2 | . . . . 2 . . 1 Average Overweight (x) . | . . . . . . . . Largest Inventory Capacity 15 | 8 8 8 15 15 5 8 8 Average Capacity 9 | 7 8 5 9 14 5 7 7 Most Carried 15 | 4 6 6 15 15 5 8 8 Average Carried 8 | 3 5 5 8 14 4 6 7 Final Capacity 15 | 8 8 5 15 5 5 8 5 Final Carried 15 | 4 6 5 15 5 5 8 5 Class Distribution -------------------- 78% | Mutant 8% | Subdweller-Mutant 3% | Derelict-Mutant 3% | Scavenger-Mutant 3% | Sprinter Dominant Class ---------------- Mutant | -10/Materials Mutant | -10/Subcaves Mutant | -9/Scraptown Mutant | -6/Factory Sprinter | -6/Lower Caves Derelict-Sprinter | -6/Lower Caves Derelict-Sprinter | -6/Data Miner Resources | -11 -10 -10 -9 -6 -6 -6 -6 ----------- Run | Yrd Mat Sub Scr Fac Low Low Dat Matter Collected 1657 | 260 . 242 110 795 165 65 20 Remotely . | . . . . . . . . Salvage Created 2627 | 120 . 368 . 2098 11 . 30 Parts 139 | 10 . 21 . 99 4 . 5 Haulers Intercepted 3 | . . . . 3 . . . Recyclers Shooed 1 | 1 . . . . . . . Parts Field Recycled . | . . . . . . . . Retrieved Matter . | . . . . . . . . Parts Self-Destructed 13 | . . 13 . . . . . Prevented . | . . . . . . . . Parts Restored . | . . . . . . . . Kills | -11 -10 -10 -9 -6 -6 -6 -6 ------- Run | Yrd Mat Sub Scr Fac Low Low Dat Combat Hostiles Destroyed 42 | . . 7 . 34 1 . . Melee 5 | . . . . 4 1 . . Guns 7 | . . 3 . 4 . . . Cannons 12 | . . 4 . 8 . . . AOE 12 | . . . . 12 . . . Classes Destroyed 14 | 2 . 2 . 9 1 . . Worker 5 | 1 . . . 4 . . . Builder 4 | . . . . 4 . . . Tunneler 6 | 5 . . . 1 . . . Hauler 3 | . . . . 3 . . . Recycler 2 | . . . . 2 . . . Operator 3 | . . . . 3 . . . Swarmer 6 | . . . . 6 . . . Grunt 14 | . . 1 . 13 . . . Duelist 1 | . . . . 1 . . . Sentry 5 | . . . . 5 . . . Hunter 6 | . . . . 6 . . . Programmer 3 | . . . . 3 . . . Subdweller 6 | . . 6 . . . . . Thief 1 | . . . . . 1 . . Best Kill Streak 10 | 5 . 2 . 10 1 . 1 Combat Bots Only 9 | . . 2 . 9 1 . . Max Kills in Single Turn 5 | 1 . 1 . 5 1 . 1 Gunslinging . | . . . . . . . . Exploded 5 | . . . . 5 . . . Melee 1 | . . . . 1 1 . . Uniques/NPCs Destroyed 1 | . . . . . . . 1 Data Miner (-6/Data Miner) Combat | -11 -10 -10 -9 -6 -6 -6 -6 -------- Run | Yrd Mat Sub Scr Fac Low Low Dat Hostile Shots Fired 487 | . . 25 . 439 1 . 22 Missed 153 | . . 6 . 138 . . 9 Hits 334 | . . 19 . 301 1 . 13 Melee 3 | . . . . 2 1 . . Projectile 331 | . . 19 . 299 . . 13 Critical Strikes 7 | . . 1 . 6 . . . Damage Taken 4948 | . . 409 . 3832 29 79 599 Core 864 | . . . . 510 29 54 271 Absorbed by Shields 536 | . . . . 536 . . . Redirected to Shielding 100 | . . . . 50 . 7 43 Ignored by Resistances 216 | . . . . 216 . . . Core Remaining (%) 100 | 100 . . 100 . . . . Volleys Fired 172 | 11 1 53 . 107 . . . Largest 2 | 2 2 2 . 2 . . . Hottest 120 | 40 40 120 . 105 . . . Shots Fired 215 | 22 2 75 . 116 . . . Gun 85 | 22 2 34 . 27 . . . Cannon 121 | . . 41 . 80 . . . Launcher 9 | . . . . 9 . . . Special . | . . . . . . . . Kinetic 68 | 22 2 16 . 28 . . . Thermal 138 | . . 59 . 79 . . . Explosive 2 | . . . . 2 . . . Electromagnetic 7 | . . . . 7 . . . Robot Hit Streak 15 | 5 . 15 . 12 . . . Robot Miss Streak 5 | 2 2 5 . 3 . . . Penetration Max . | . . . . . . . . Secondary Targets . | . . . . . . . . Shots Hit Robots 151 | 12 . 41 . 95 2 . 1 Core Hits 85 | 5 . 18 . 61 1 . . Critical Kills 4 | . . 1 . 3 . . . Critical Parts Destroyed 2 | . . . . 2 . . . Critical Strikes 11 | . . 2 . 8 1 . . Burn 1 | . . 1 . . . . . Meltdown 4 | . . 1 . 3 . . . Corrupt 1 | . . . . 1 . . . Smash 2 | . . . . 2 . . . Sever 3 | . . . . 2 1 . . Melee Attacks 78 | . . 11 . 56 4 . 7 Impact 24 | . . 11 . 13 . . . Slashing 54 | . . . . 43 4 . 7 Piercing . | . . . . . . . . Sneak Attacks 11 | . . . . 10 . . 1 Combat Hostiles . | . . . . . . . . Follow-up Attacks . | . . . . . . . . Damage Inflicted 7001 | 155 . 747 . 5944 72 . 83 Guns 1024 | 155 . 339 . 530 . . . Cannons 2014 | . . 408 . 1606 . . . Explosions 2225 | . . . . 2225 . . . Melee 1719 | . . . . 1564 72 . 83 Ramming 19 | . . . . 19 . . . Kinetic 1630 | 155 . 207 . 1268 . . . Thermal 2476 | . . 540 . 1936 . . . Explosive 959 | . . . . 959 . . . Electromagnetic 198 | . . . . 198 . . . Impact 396 | . . . . 396 . . . Slashing 1323 | . . . . 1168 72 . 83 Piercing . | . . . . . . . . Highest Corruption 23 | . . . . 23 23 23 23 Average Corruption 20 | . . . . 20 23 23 23 Corruption Purged . | . . . . . . . . Corruption Blocked . | . . . . . . . . Effects 100 | . . . . 86 3 6 5 Message Errors 17 | . . . . 16 1 . . Matter Fused 21 | . . . . 18 1 2 . Heat Flow Errors 8 | . . . . 7 . . 1 Energy Discharges 17 | . . . . 13 1 2 1 Parts Rejected 5 | . . . . 3 . . 2 Parts Fused 3 | . . . . 3 . . . Data Loss (minor) 14 | . . . . 11 . 2 1 Data Loss (major) 2 | . . . . 2 . . . Misfires 3 | . . . . 3 . . . Alerts 3 | . . . . 3 . . . Misdirections 3 | . . . . 3 . . . Weapon Failures 4 | . . . . 4 . . . Overload Shots 3 | . . . . 3 . . . Overflow Damage 840 | . . . . 767 . . 73 Projectiles 45 | . . . . 45 . . . Explosions 270 | . . . . 270 . . . Melee 525 | . . . . 452 . . 73 Knockbacks . | . . . . . . . . Impact . | . . . . . . . . Kinetic . | . . . . . . . . Secondary . | . . . . . . . . Self-Inflicted Damage 121 | . . . . 121 . . . Shots 3 | . . . . 3 . . . Rammed . | . . . . . . . . Targets Rammed 2 | 1 . . . 1 . . . Kicked 1 | . . . . 1 . . . Crushed 1 | 1 . . . . . . . Highest Temperature 335 | . . 18 . 272 . 335 146 Average Temperature 81 | . . 9 . 75 . 186 77 Received Heat Transfer 852 | . . 45 . 807 . . . Siege Activations . | . . . . . . . . Martial Activations . | . . . . . . . . Shielding Activations . | . . . . . . . . Robots Disrupted . | . . . . . . . . Combat Hostiles . | . . . . . . . . Robots Corrupted 4 | . . . . 4 . . . Combat Hostiles 4 | . . . . 4 . . . Parts Fried 4 | . . . . 4 . . . Impact Corruptions 7 | . . . . 7 . . . Robots Melted 5 | . . 1 . 4 . . . Combat Hostiles 3 | . . 1 . 2 . . . Parts Melted 12 | . . 2 . 10 . . . Heat Transferred 3626 | . . 1136 . 2490 . . . Parts Sabotaged . | . . . . . . . . Parts Stolen . | . . . . . . . . Parts Stripped . | . . . . . . . . Power Chain Reactions . | . . . . . . . . Alert | -11 -10 -10 -9 -6 -6 -6 -6 ------- Run | Yrd Mat Sub Scr Fac Low Low Dat Maximum Alert Level 3 | . . . . 3 . . . Low Security (%) 38 | 100 100 . . 28 . . . Level 1 35 | . . . . 41 . . . Level 2 23 | . . . . 26 . . . Level 3 2 | . . . . 3 . . . Level 4 . | . . . . . . . . Level 5 . | . . . . . . . . High Security . | . . . . . . . . Max Security . | . . . . . . . . Peak Influence 724 | 10 4 . . 724 . . . Initial . | . . . . . . . . Average 290 | 1 . . . 334 . . . Influence Increases 1470 | 30 4 30 . 1386 . . 20 Destroy 0b10 Robot/C 720 | . . 20 . 680 . . 20 Destroy 0b10 Robot/NC 110 | 30 . . . 80 . . . Destroy Leader 186 | . . 10 . 176 . . . Trap Triggered on 0b10 20 | . . . . 20 . . . Successful Hack 40 | . 4 . . 36 . . . Disable Machine 45 | . . . . 45 . . . Destroy Structure 169 | . . . . 169 . . . Partial Spotted 15 | . . . . 15 . . . Lose Combat Pursuer 165 | . . . . 165 . . . Influence Decreases 1470 | 30 4 30 . 730 293 120 263 Entered New Map 556 | . . . . . 243 70 243 Time Decay 744 | 30 4 30 . 580 50 50 . Lost Part 170 | . . . . 150 . . 20 Squads Dispatched 22 | . . . . 22 . . . Investigation 7 | . . . . 7 . . . Extermination 4 | . . . . 4 . . . Reinforcement 9 | . . . . 9 . . . Assault 2 | . . . . 2 . . . Garrison . | . . . . . . . . Intercept . | . . . . . . . . Searches Triggered . | . . . . . . . . Construction Impeded 2 | . . . . 2 . . . Haulers Reinforced 1 | . . . . 1 . . . Active Scanning Responses . | . . . . . . . . Cargo Convoy Interrupts . | . . . . . . . . Stealth | -11 -10 -10 -9 -6 -6 -6 -6 --------- Run | Yrd Mat Sub Scr Fac Low Low Dat Distress Signals 1 | . . . . 1 . . . Communications Jammed . | . . . . . . . . Distress Signals . | . . . . . . . . Times Spotted 80 | . . 10 . 65 1 . 4 Peak Tracking Total 9 | . . 2 . 9 1 . 4 Tactical Retreats 7 | . . . . 7 . . . Traps | -11 -10 -10 -9 -6 -6 -6 -6 ------- Run | Yrd Mat Sub Scr Fac Low Low Dat Traps Triggered 3 | . . . . 1 . 2 . Indirectly . | . . . . . . . . Trap Hack Attempts . | . . . . . . . . Triggered . | . . . . . . . . Disarmed . | . . . . . . . . Reprogrammed . | . . . . . . . . Reused 2 | . . . . 2 . . . Traps Extracted . | . . . . . . . . Installed 2 | . . . . 2 . . . Triggered 2 | . . . . 2 . . . Most Traps Carried 3 | . . . 3 3 1 . . Machines | -11 -10 -10 -9 -6 -6 -6 -6 ---------- Run | Yrd Mat Sub Scr Fac Low Low Dat Machines Disabled 4 | . . 1 . 3 . . . Max in Single Turn 2 | . . 1 . 2 . . . Garrison Access 1 | . . . . 1 . . . Machines Repaired . | . . . . . . . . Machines Dismantled . | . . . . . . . . Machines Sabotaged . | . . . . . . . . Overloaded Fab Kills . | . . . . . . . . Hacking | -11 -10 -10 -9 -6 -6 -6 -6 --------- Run | Yrd Mat Sub Scr Fac Low Low Dat Machines Accessed 30 | . 1 1 8 15 . 1 4 Terminals 7 | . 1 . . 6 . . . Fabricators 2 | . . . . 2 . . . Repair Stations . | . . . . . . . . Recycling Units 5 | . . . . 5 . . . Scanalyzers 1 | . . . . 1 . . . Garrison Access 1 | . . . . 1 . . . Total Hacks 134 | . 2 9 55 39 . 1 28 Successful 111 | . 1 9 55 17 . 1 28 Failed 23 | . 1 . . 22 . . . Catastrophic 7 | . . . . 7 . . . Database Lockouts . | . . . . . . . . Manual 18 | . 1 . . 17 . . . Terminals 21 | . 2 . . 19 . . . Fabricators 4 | . . . . 4 . . . Repair Stations . | . . . . . . . . Recycling Units 6 | . . . . 6 . . . Scanalyzers 7 | . . . . 7 . . . Garrison Access 3 | . . . . 3 . . . Terminal Hacks 96 | . 1 9 55 2 . 1 28 Record 67 | . . 8 48 . . . 11 Part Schematic 10 | . . . . 1 . . 9 Robot Schematic 5 | . . . . . . . 5 Robot Analysis 6 | . . . 6 . . . . Prototype ID Bank 4 | . . . . 1 . . 3 Open Door 1 | . . . . . . 1 . Locate Traps 1 | . 1 . . . . . . Proto ID Catalog 2 | . . 1 1 . . . . Fabricator Hacks 1 | . . . . 1 . . . Network Status 1 | . . . . 1 . . . Repair Station Hacks . | . . . . . . . . Recycling Unit Hacks . | . . . . . . . . Scanalyzer 6 | . . . . 6 . . . Insert Component 1 | . . . . 1 . . . Analyze 1 | . . . . 1 . . . Retrieve Study 4 | . . . . 4 . . . Garrison Access Hacks 1 | . . . . 1 . . . Seal Access 1 | . . . . 1 . . . Unauthorized Hacks 7 | . . . . 7 . . . Terminals 1 | . . . . 1 . . . Assimilate 1 | . . . . 1 . . . Fabricators 2 | . . . . 2 . . . Report 1 | . . . . 1 . . . Haulers 1 | . . . . 1 . . . Repair Stations . | . . . . . . . . Recycling Units 4 | . . . . 4 . . . Fedlink 4 | . . . . 4 . . . Scanalyzers . | . . . . . . . . Garrison Access . | . . . . . . . . Data Cores Recovered . | . . . . . . . . Used . | . . . . . . . . Hacking Detections 12 | . 1 . . 11 . . . Full Trace Events 3 | . . . . 3 . . . Feedback Events . | . . . . . . . . Feedback Blocked . | . . . . . . . . Robot Schematics Acquired 5 | . . . . . . . 5 Robots Built . | . . . . . . . . Authchips . | . . . . . . . . Time . | . . . . . . . . Total Robot Build Rating . | . . . . . . . . Part Schematics Acquired 11 | . . . . 2 . . 9 Parts Built . | . . . . . . . . Authchips . | . . . . . . . . Time . | . . . . . . . . Total Part Build Rating . | . . . . . . . . Part Studies Acquired 4 | . . . . 4 . . . Parts Repaired . | . . . . . . . . Time . | . . . . . . . . Parts Recycled . | . . . . . . . . Recycled Matter . | . . . . . . . . Retrieved Matter . | . . . . . . . . Retrieved Components . | . . . . . . . . Parts Scanalyzed 1 | . . . . 1 . . . Part Schematics Acquired 1 | . . . . 1 . . . Parts Damaged . | . . . . . . . . Bothacking | -11 -10 -10 -9 -6 -6 -6 -6 ------------ Run | Yrd Mat Sub Scr Fac Low Low Dat Used RIF Installer . | . . . . . . . . Robots Hacked . | . . . . . . . . Non-combat . | . . . . . . . . Combat . | . . . . . . . . Robot Hacks Applied . | . . . . . . . . Relay Couplers Released . | . . . . . . . . Fabnet Peak Effective % . | . . . . . . . . Robots Rewired . | . . . . . . . . Allies Hacked . | . . . . . . . . Hacks Repelled . | . . . . . . . . Allies | -11 -10 -10 -9 -6 -6 -6 -6 -------- Run | Yrd Mat Sub Scr Fac Low Low Dat Total Allies 1 | . . . . 1 . . . Largest Group 1 | . . . . 1 . . . Highest-Rated Group 10 | . . . . 10 . . . Highest-Rated Ally 10 | . . . . 10 . . . Total Orders . | . . . . . . . . Ally Attacks . | . . . . . . . . Total Damage . | . . . . . . . . Kills . | . . . . . . . . Allies Corrupted . | . . . . . . . . Allies Melted . | . . . . . . . . Intel | -11 -10 -10 -9 -6 -6 -6 -6 ------- Run | Yrd Mat Sub Scr Fac Low Low Dat Active Infowar (turns) 2556 | 105 133 7 1 2020 102 116 72 Optics 2134 | . . . . 1844 102 116 72 Structural 1543 | . . . . 1543 . . . Seismic 245 | 105 133 7 . . . . . ECM 12 | . . . 1 11 . . . Robot Analysis Total 154 | . . . 6 . . . 148 Derelict Logs Recovered 7 | . . . 3 . 2 2 . Drone Launches . | . . . . . . . . Drone Recoveries . | . . . . . . . . Exploration | -11 -10 -10 -9 -6 -6 -6 -6 ------------- Run | Yrd Mat Sub Scr Fac Low Low Dat Turns Passed 8316 | 185 133 2817 2804 2087 102 116 72 Spaces Moved 5560 | 88 35 1619 1896 1280 228 316 98 Core 37 | 5 . . 1 12 15 . 4 Treads 3278 | 83 35 1619 1541 . . . . Legs 1431 | . . . 163 1268 . . . Wheels . | . . . . . . . . Hover 13 | . . . . . . . 13 Flight 801 | . . . 191 . 213 316 81 Fastest Speed 32 | 50 160 160 32 50 32 32 32 Average Speed 130 | 153 160 160 144 117 33 32 38 Slowest Speed 260 | 160 160 160 160 260 50 32 115 Overloaded Moves . | . . . . . . . . Propulsion Burnouts . | . . . . . . . . Robots Hopped . | . . . . . . . . Potential Cave-ins . | . . . . . . . . Cave-ins Triggered . | . . . . . . . . Exploration Rate (%) 49 | 5 9 68 89 37 51 53 80 Regions Visited 7 Branch Regions 5 Pre-discovered Areas 33 | . . 1 6 1 . 1 24 Known Exits Taken 3 | . . . 1 1 1 . . Unknown Exits Taken 4 | 1 1 1 . . . 1 . Scrap Searched 22 | . . 8 8 . 3 3 . Spaces Dug 29 | . . . . 28 1 . . Terrain Destroyed 197 | . . . . 196 1 . . Melee 26 | . . . . 25 1 . . Projectile 29 | . . . . 29 . . . AOE 142 | . . . . 142 . . . Terrain Rammed . | . . . . . . . . Walls Destroyed . | . . . . . . . . Machines Disabled . | . . . . . . . . Actions | -11 -10 -10 -9 -6 -6 -6 -6 --------- Run | Yrd Mat Sub Scr Fac Low Low Dat Total 6333 | 112 110 1762 1968 1683 245 330 123 Wait 241 | . 73 40 6 109 . 8 5 Move 5553 | 87 34 1618 1895 1279 227 315 98 Hop . | . . . . . . . . Pick Up 81 | 5 2 5 31 28 1 4 5 Fast Attach 55 | 6 . 6 8 22 9 1 3 Attach 25 | 1 . 1 6 17 . . . Detach 7 | . . 1 2 4 . . . Swap 21 | 1 . 4 . 16 . . . Drop 88 | . . 15 20 42 4 2 5 Fire 172 | 11 1 53 . 107 . . . Melee 78 | . . 11 . 56 4 . 7 Ram . | . . . . . . . . Kick 1 | . . . . 1 . . . Crush 1 | 1 . . . . . . . Escape Stasis . | . . . . . . . . Rewire . | . . . . . . . . Trap 2 | . . . . 2 . . . Miscellaneous 8 | . . 8 . . . . . Route ------- -11/Scrapyard -10/Materials -10/Subcaves (discovered 3 exits: [*Mat x2] / *Scr) -9/Scraptown (discovered 2 exits: *Fac x2) -6/Factory (discovered 5 exits: *Fac x4 / *Low) -6/Lower Caves -6/Lower Caves -6/Data Miner (discovered 1 exit: [*Pro]) History --------- Turn | Location | Event 4 | -11/Scrapyard | Discovered new exit (range 16) 186 | -11/Scrapyard | Entered Materials 294 | -10/Materials | Discovered new exit (range 3) 301 | -10/Materials | Build established: Mutant 319 | -10/Materials | Entered Subcaves 320 | -10/Subcaves | Approached by a straggling Scientist 476 | -10/Subcaves | Discovered new exit (range 14) 553 | -10/Subcaves | Learned location of Zion (-7) 553 | -10/Subcaves | Met a Zionite searching for "candidates" 592 | -10/Subcaves | Shifting Twisted Machinery released Flamer 1305 | -10/Subcaves | Visited 4L-MR0's lab 1329 | -10/Subcaves | Found Cargo Legs 1525 | -10/Subcaves | Shifting Twisted Machinery released Mak. Flight Unit 2124 | -10/Subcaves | Discovered new exit (range 3) 2216 | -10/Subcaves | A swath of the cavern ceiling suddenly collapsed 2304 | -10/Subcaves | Build established: Subdweller-Mutant 2556 | -10/Subcaves | Shifting Twisted Machinery released Sub. Power Source 2568 | -10/Subcaves | Shifting Twisted Machinery released Enh. Flamer 2717 | -10/Subcaves | Disturbed a concealed Subdweller 2735 | -10/Subcaves | Disturbed a concealed Subdweller 2991 | -10/Subcaves | Build established: Mutant 3136 | -10/Subcaves | Entered Scraptown 3351 | -9/Scraptown | Visited UFD Registry 3351 | -9/Scraptown | Registered with UFD as "Thunderchassis" 3373 | -9/Scraptown | Visited The Evicted 3392 | -9/Scraptown | Heard Great Nut preacher, LISTEN AND RECITE! 3426 | -9/Scraptown | Visited Fellowship of the Rings 3444 | -9/Scraptown | Visited Red Mages 3517 | -9/Scraptown | Scanned Subdweller tech in exchange for log data 3520 | -9/Scraptown | Learned location of Extension (-4) 3522 | -9/Scraptown | Learned Factory stockpile data 3524 | -9/Scraptown | Learned Factory terminal intel 3541 | -9/Scraptown | Discovered new exit (range 11) 3943 | -9/Scraptown | Visited Cyclists 3970 | -9/Scraptown | Entered Cyclist Reading Room 4012 | -9/Scraptown | Visited Comm Corps 4026 | -9/Scraptown | Visited Cave Peace 4042 | -9/Scraptown | Visited TADAMA 4150 | -9/Scraptown | Visited Abandonware Association 4167 | -9/Scraptown | Learned abandonware demo "REPAIR.EXE" 4167 | -9/Scraptown | Learned abandonware demo "REBOOT5.EXE" 4233 | -9/Scraptown | Visited Cartography Club 4271 | -9/Scraptown | Visited DA-N13 Charitable Foundation 4278 | -9/Scraptown | Found DCF Scrap (29 items) 4340 | -9/Scraptown | Visited Scrapoid Pod Storage 4367 | -9/Scraptown | Visited Observation Area 4382 | -9/Scraptown | Visited A0-MCA Data Center 4398 | -9/Scraptown | Given a B+ rating by A0-MCA 4430 | -9/Scraptown | Visited Analyses Database 4465 | -9/Scraptown | Visited Science Guys 4538 | -9/Scraptown | Delivered Scrap Shield to a Scientist 4720 | -9/Scraptown | Visited Curators Association 4746 | -9/Scraptown | Visited Research Penetration Think Tank 4875 | -9/Scraptown | Found A0-MCA's Component Scanner 5055 | -9/Scraptown | Learned location of Storage (-9) 5055 | -9/Scraptown | Learned 16 Materials zone layouts 5055 | -9/Scraptown | Learned 12 Upper Caves zone layouts 5055 | -9/Scraptown | Learned 8 Proximity Caves zone layouts 5055 | -9/Scraptown | Learned 16 Proximity Caves zone layouts 5055 | -9/Scraptown | Learned 24 Proximity Caves zone layouts 5055 | -9/Scraptown | Learned Materials emergency access door positions 5055 | -9/Scraptown | Learned location of 2 exits from Factory 5055 | -9/Scraptown | Learned location of 1 exit from Research 5055 | -9/Scraptown | Identified exit to Factory 5064 | -9/Scraptown | Found Deep Structural Scanner 5725 | -9/Scraptown | Attached Cargo Legs, gained temporary slots: Utility x2 5859 | -9/Scraptown | Met Optimus 5859 | -9/Scraptown | Accepted into 0bPrime 5940 | -9/Scraptown | Entered Factory 5940 | -6/Factory | Evolved 8 slots: Power x1, Propulsion x2, Utility x5 5941 | -6/Factory | Identified exit to Factory 5942 | -6/Factory | Identified exit to Lower Caves 5944 | -6/Factory | Loaded intel: 26 terminal locations 6058 | -6/Factory | Destroyed 7 combat bots 6243 | -6/Factory | System corruption reached 10% 6250 | -6/Factory | Loaded intel: 8 recycling unit locations 6438 | -6/Factory | Learned location of Protoforge (-3) 7505 | -6/Factory | Lost 4 parts (2p2u) 7516 | -6/Factory | Destroyed 9 combat bots 7690 | -6/Factory | First assault squad dispatched 7962 | -6/Factory | Discovered exit to Factory (range 13) 8001 | -6/Factory | Core integrity fell below 50% 8027 | -6/Factory | Entered Lower Caves 8029 | -6/Lower Caves | UFD Scientist delivered a prototype 8031 | -6/Lower Caves | Found Enh. Scrap Shield 8042 | -6/Lower Caves | Lost 8 parts (4n2u2w) 8082 | -6/Lower Caves | Identified exit to Lower Caves 8109 | -6/Lower Caves | Learned Factory terminal intel 8129 | -6/Lower Caves | Entered another Lower Caves area 8181 | -6/Lower Caves | Learned 12 Factory zone layouts 8228 | -6/Lower Caves | Discovered new exit (range 17) 8245 | -6/Lower Caves | Entered Data Miner 8245 | -6/Data Miner | Discovered new exit (range 6) 8250 | -6/Data Miner | Met Data Miner 8258 | -6/Data Miner | Learned location of Section 7 (-3) 8258 | -6/Data Miner | Acquired the access code to Warlord's prototype stash 8263 | -6/Data Miner | Received God Mode back door access code from Data Miner 8268 | -6/Data Miner | Destroyed Data Miner 8271 | -6/Data Miner | Interfaced with the Data Conduit 8273 | -6/Data Miner | Found Deep Network Scanner 8274 | -6/Data Miner | Found Ghost Barrier 8276 | -6/Data Miner | Found Quantum Router 8314 | -6/Data Miner | Core integrity fell below 20% 8317 | -6/Data Miner | Destroyed by Enhanced Grunt with Neutron Cannon Last Messages --------------- 08273_ Acquired Deep Network Scanner. 08274_ Acquired Ghost Barrier. 08276_ Acquired Quantum Router. 08278_ Dropped Lgt. Deuterium Engine. 08278_ Acquired CPS Tube. 08279_ Cesium-ion Thruster destroyed. 08282_ Acquired Gravmag Array. 08284_ System corrupted: Propulsion Shielding rejected. 08284_ Acquired Propulsion Shielding. 08285_ Acquired 20 matter. 08299_ System corrupted: Propulsion Shielding rejected. 08299_ Acquired Propulsion Shielding. 08307_ Sml. Storage Unit destroyed. 08307_ Propulsion Shielding destroyed. 08308_ Dropped CPS Tube. 08309_ Acquired Quantum Router. 08312_ Power Sword+ destroyed. 08315_ System corrupted: Energy discharge (-18). 08315_ Gravmag Array destroyed. 08316_ Imp. Melee Analysis Suite destroyed. Map ----- +----------------------------------------------------+ | | | | | | | | | | | | | | | | | | | | | | | | | | | | | | | | | | | ????????????????????????????????????????????? | | ????????????????????????????????????????????? | | ????????????????????????????????????????????? | | ????????????????????????????????????????????? | | ?????????????????????????????????????####???? | | ????#################??????????????### #???? | | ???##"""""""""""""""######????????## #???? | | ??##"""""!g |g """"""""# # # #### < ##???? | | ??#""""" "" @ ##### | | ??#""""" " g | | ??#"""""" g! | | ??#""""""% | | ??#"""""""*! # | | ??#"""""" * """"""""""""""""##### | | ??#""""""" """"###############???? | | ??##""""""" """""###?????????????????? | | ???##"""""""" "#####???????????????????? | | ????########"## "#???????????????????????? | | ???????????#"### "#???????????????????????? | | ???????????#"### "#???????????????????????? | | ???????????#"## "#???????????????????????? | | ???????????#"## "#???????????????????????? | | ???????????#"# "#???????????????????????? | | ?????????????### "#???????????????????????? | | ???????????????# "##??????????????????????? | | ??????????????## ""#??????????????????????? | | ?????????????## ""#??????????????????????? | | ????????#"##"#"X ""#??????????????????????? | | ????????#"""""" "#####??????????????????? | | ????????##""""" X"""""#??????????????????? | | ?????????###"#"X "##"##??????????????????? | | ???????????#"## X""""#???????????????????? | | ???????????#??## "##"#???????????????????? | +----------------------------------------------------+ Best States ------------- Heat Dissipation 64 Energy Generation 33 Energy Capacity 815 Matter Stores 300 Matter Capacity 300 Sight Range 22 Terrain Scan Density 135 Armor Coverage 800 Resistance: KI 20 Resistance: TH 20 Resistance: EM 25 Propulsion Shielding 33 Utility Shielding 66 Evasion (%) 63 Melee Accuracy 6 Core Analysis 6 Armor Integrity Analysis 30 Recoil Reduction 2 Item Schematics ----------------- Imp. Utility Shielding | -6/Factory | Hacked CPS Tube | -6/Factory | Scanalyzed Combat Drone Bay | -6/Data Miner | Free Lgt. Regenerative Plating | -6/Data Miner | Free Cld. Gravmag System | -6/Data Miner | Free Prc. Matter Filter | -6/Data Miner | Free Cld. Plasma Rifle | -6/Data Miner | Free Adv. VSS Leg | -6/Data Miner | Free Imp. Force Booster | -6/Data Miner | Free Enh. Force Lance | -6/Data Miner | Free Hardcell Cannon | -6/Data Miner | Free Robot Schematics ------------------ L-41 Fighter | -6/Data Miner | Free B-60 Warrior | -6/Data Miner | Free G-50 Soldier | -6/Data Miner | Free R-10 Processor | -6/Data Miner | Free G-67 Veteran | -6/Data Miner | Free Fabricated ------------ Nothing Repaired ---------- Nothing Studied --------- Imp. VSS Leg | -6/Factory | Hacked Flexi-carbon Leg | -6/Factory | Hacked Power Sword | -6/Factory | Hacked Lgt. Fission Core | -6/Factory | Hacked Alien Tech Used ----------------- None Achievements -------------- Wiki Contributor Challenges ------------ None Game ------ Seed MasterCooledPurifier Manual? 0 Play Time 01:00:15 Cumulative 823.5 hours Start 2025.11.03 @ 16:23:03 End 2025.11.04 @ 01:24:32 Sessions 5 Manual Loads 0 Difficulty Rogue Special Mode None Game No. 824 Rogue 824 Adventurer 0 Explorer 0 Win Type - Total 39 Types 14/4/11/2/0/0/5/2/1/0 Lore% 96 Gallery% 86 Achievement% 60 Wizard Run 0 Options --------- Layout 0 ASCII 0 Keyboard 0 Movement Numpad Keybinds 0 Fullscreen 1 Font 18/Smallcaps Map View 76x50 Zoom Use 0% Tactical HUD 1 Map Filters NONE Filters NONE Steam 1 RUN: ae5bcfc4-b374-452e-840a-718fb8332b4a